fUST/lending_fUST_20251001
["ID","MTS","AMOUNT","RATE_DAILY","PERIOD"]
[388657206,1759306241939,-500.0,0.00019687,2]
[388657207,1759306241949,-500.0,0.00019687,2]
[388657208,1759306241958,-469.1727934,0.00019687,2]
[388657209,1759306241967,-465.43133117,0.00019687,2]
[388657210,1759306241977,-500.0,0.00019687,2]
[388657211,1759306241986,-462.09087653,0.00019687,2]
[388657212,1759306241995,-253.28657213,0.00019687,2]
[388657213,1759306242004,-500.0,0.00019687,2]
[388657214,1759306242014,-462.83635656,0.00019687,2]
[388657215,1759306242023,-462.02352331,0.00019687,2]
[388657216,1759306242032,-500.0,0.00019687,2]
[388657217,1759306242041,-500.0,0.00019687,2]
[388657218,1759306242050,-500.0,0.00019687,2]
[388657219,1759306242059,-500.0,0.00019687,2]
[388657220,1759306242068,-500.0,0.00019687,2]
[388657221,1759306242078,-403.76135652,0.00019687,2]
[388657222,1759306242087,-508.16926348,0.00019687,2]
[388657223,1759306242096,-462.96379974,0.00019687,2]
[388657224,1759306242105,-500.0,0.00019687,2]
[388657225,1759306242115,-500.0,0.00019687,2]
[388657226,1759306242124,-500.0,0.00019687,2]
[388657227,1759306242133,-467.59379288,0.00019687,2]
[388657228,1759306242142,-500.0,0.00019687,2]
[388657229,1759306242151,-500.0,0.00019687,2]
[388657230,1759306242160,-500.0,0.00019687,2]
[388657231,1759306242170,-500.0,0.00019687,2]
[388657232,1759306242182,-500.0,0.00019687,2]
[388657233,1759306242191,-500.0,0.00019687,2]
[388657234,1759306242200,-500.0,0.00019687,2]
[388657235,1759306242209,-500.0,0.00019687,2]
[388657236,1759306242218,-500.0,0.00019687,2]
[388657237,1759306242228,-307.48299993,0.00019687,2]
[388657238,1759306242237,-500.0,0.00019687,2]
[388657239,1759306242246,-500.0,0.00019687,2]
[388657240,1759306242255,-500.0,0.00019687,2]
[388657241,1759306242264,-500.0,0.00019687,2]
[388657242,1759306242273,-500.0,0.00019687,2]
[388657243,1759306242283,-500.0,0.00019687,2]
[388657244,1759306242292,-500.0,0.00019687,2]
[388657245,1759306242301,-10000.0,0.00019687,2]
[388657246,1759306242310,-500.0,0.00019688,2]
[388657247,1759306242319,-500.0,0.00019688,2]
[388657248,1759306242329,-500.0,0.00019688,2]
[388657249,1759306242338,-500.0,0.00019688,2]
[388657250,1759306242347,-520.0,0.00019688,3]
[388657251,1759306242356,-660.18,0.00019688,2]
[388657252,1759306242365,-1518.03,0.00019688,2]
[388657253,1759306242375,-500.0,0.00019688,2]
[388657254,1759306242384,-627.71,0.00019688,2]
[388657255,1759306242393,-677.65,0.00019688,2]
[388657256,1759306242401,-467.83126422,0.00019688,2]
[388657257,1759306242411,-500.0,0.00019688,2]
[388657258,1759306242419,-500.0,0.00019688,2]
[388657259,1759306242428,-287.87902039,0.00019688,2]
[388657260,1759306242437,-760.81,0.00019688,2]
[388657261,1759306242446,-500.0,0.00019688,2]
[388657262,1759306242455,-2025.29,0.00019688,2]
[388657263,1759306242465,-554.36,0.00019688,2]
[388657264,1759306242474,-500.0,0.00019688,2]
[388657265,1759306242483,-500.0,0.00019688,2]
[388657266,1759306242492,-1328.58,0.00019688,2]
[388657267,1759306242501,-1328.58,0.00019688,2]
[388657268,1759306242510,-1328.58,0.00019688,2]
[388657269,1759306242519,-1328.58,0.00019688,2]
[388657270,1759306242528,-1328.58,0.00019688,2]
[388657271,1759306242538,-1328.58,0.00019688,2]
[388657272,1759306242547,-1328.58,0.00019688,2]
[388657273,1759306242556,-1328.58,0.00019688,2]
[388657274,1759306242568,-1328.58,0.00019688,2]
[388657275,1759306242577,-1328.58,0.00019688,2]
[388657276,1759306242587,-1328.58,0.00019688,2]
[388657277,1759306242596,-1328.58,0.00019688,2]
[388657278,1759306242606,-1328.58,0.00019688,2]
[388657279,1759306242615,-1328.58,0.00019688,2]
[388657280,1759306242624,-1328.58,0.00019688,2]
[388657281,1759306242633,-1328.58,0.00019688,2]
[388657282,1759306242642,-1328.58,0.00019688,2]
[388657283,1759306242651,-1328.58,0.00019688,2]
[388657284,1759306242660,-1328.58,0.00019688,2]
[388657285,1759306242669,-500.0,0.00019688,2]
[388657286,1759306242679,-500.0,0.00019688,2]
[388657287,1759306242689,-500.0,0.00019688,2]
[388657288,1759306242700,-500.0,0.00019688,2]
[388657289,1759306242709,-500.0,0.00019688,2]
[388657290,1759306242718,-500.0,0.00019688,2]
[388657291,1759306242727,-500.0,0.00019688,2]
[388657292,1759306242736,-500.0,0.00019688,2]
[388657293,1759306242746,-500.0,0.00019688,2]
[388657294,1759306242756,-500.0,0.00019688,2]
[388657295,1759306242765,-500.0,0.00019688,2]
[388657296,1759306242775,-500.0,0.00019688,2]
[388657297,1759306242785,-500.0,0.00019688,2]
[388657298,1759306242794,-564.05,0.00019688,2]
[388657299,1759306242803,-533.75,0.00019688,2]
[388657300,1759306242812,-500.0,0.00019688,2]
[388657301,1759306242820,-500.0,0.00019688,2]
[388657302,1759306242829,-500.0,0.00019688,2]
[388657303,1759306242839,-881.2591478,0.00019698,2]
[388657304,1759306242848,-1328.58,0.00019786,2]
[388657305,1759306242857,-1328.58,0.00019786,2]
[388657306,1759306242867,-1328.58,0.00019786,2]
[388657307,1759306242878,-1328.58,0.00019786,2]
[388657308,1759306242887,-1328.72341395,0.00019786,2]
[388657309,1759306242896,-500.0,0.00019787,2]
[388657310,1759306242905,-667.56,0.00019787,2]
[388657311,1759306242915,-500.0,0.00019787,2]
[388657312,1759306242924,-500.0,0.00019787,2]
[388657313,1759306242933,-500.0,0.00019787,2]
[388657314,1759306242942,-500.0,0.00019787,2]
[388657315,1759306242951,-920.38,0.00019787,2]
[388657316,1759306242960,-500.0,0.00019787,2]
[388657317,1759306242970,-220.63482455,0.00019825,2]
[388657318,1759306242979,-500.0,0.00019858,2]
[388657319,1759306242988,-500.0,0.0001986,2]
[388657320,1759306242997,-500.0,0.0001986,2]
[388657321,1759306243006,-500.0,0.0001986,2]
[388657322,1759306243015,-500.0,0.0001986,2]
[388657323,1759306243024,-500.0,0.0001986,2]
[388657324,1759306243033,-1697.63,0.0001986,2]
[388657325,1759306243042,-500.0,0.0001986,2]
[388657326,1759306243053,-500.0,0.0001986,2]
[388657327,1759306243062,-2784.55,0.0001986,2]
[388657328,1759306243072,-512.93,0.0001986,2]
[388657329,1759306243081,-500.0,0.0001986,2]
[388657330,1759306243090,-500.0,0.0001986,2]
[388657331,1759306243100,-1490.46,0.0001986,2]
[388657333,1759306243109,-810.31,0.0001986,2]
[388657335,1759306243121,-2100.1,0.0001986,2]
[388657336,1759306243131,-947.32,0.0001986,2]
[388657338,1759306243141,-503.22,0.0001986,2]
[388657340,1759306243150,-500.0,0.0001986,2]
[388657342,1759306243159,-460.00724043,0.0001986,2]
[388657343,1759306243168,-1050.55,0.0001986,2]
[388657344,1759306243180,-1451.5,0.0001986,2]
[388657346,1759306243193,-845.24,0.0001986,2]
[388657347,1759306243202,-500.37,0.0001986,2]
[388657348,1759306243213,-771.47,0.0001986,2]
[388657349,1759306243225,-1818.64,0.0001986,2]
[388657350,1759306243234,-500.0,0.0001986,2]
[388657351,1759306243244,-500.0,0.0001986,2]
[388657352,1759306243254,-600.07,0.0001986,2]
[388657353,1759306243266,-500.0,0.0001986,2]
[388657354,1759306243276,-2468.21,0.0001986,2]
[388657355,1759306243285,-609.27,0.0001986,2]
[388657356,1759306243295,-1048.4,0.0001986,2]
[388657357,1759306243304,-1281.81,0.0001986,2]
[388657358,1759306243313,-500.0,0.0001986,2]
[388657359,1759306243322,-857.22,0.0001986,2]
[388657360,1759306243331,-500.0,0.0001986,2]
[388657361,1759306243340,-500.0,0.00019861,2]
[388657362,1759306243349,-500.0,0.00019861,2]
[388657363,1759306243358,-500.0,0.00019861,2]
[388657364,1759306243367,-500.0,0.00019861,2]
[388657365,1759306243378,-500.0,0.00019861,2]
[388657366,1759306243387,-500.0,0.00019861,2]
[388657367,1759306243396,-538.8,0.00019861,2]
[388657368,1759306243406,-500.0,0.00019861,2]
[388657369,1759306243415,-500.0,0.00019861,2]
[388657370,1759306243424,-354.49191188,0.00019861,2]
[388657371,1759306243433,-378.74249108,0.00019861,2]
[388657372,1759306243443,-500.0,0.00019861,2]
[388657373,1759306243452,-500.0,0.00019861,2]
[388657374,1759306243461,-406.71734129,0.00019861,2]
[388657375,1759306243470,-500.0,0.00019861,2]
[388657376,1759306243480,-500.0,0.00019861,2]
[388657377,1759306243489,-500.0,0.00019861,2]
[388657378,1759306243498,-500.0,0.00019861,2]
[388657379,1759306243507,-484.08200638,0.00019861,2]
[388657380,1759306243516,-997.82,0.00019861,2]
[388657381,1759306243525,-500.0,0.00019861,2]
[388657382,1759306243534,-500.0,0.00019861,2]
[388657383,1759306243544,-802.08,0.00019861,2]
[388657384,1759306243553,-500.0,0.00019861,2]
[388657385,1759306243563,-500.0,0.00019861,2]
[388657386,1759306243572,-500.0,0.00019861,2]
[388657387,1759306243582,-500.0,0.00019861,2]
[388657388,1759306243591,-500.0,0.00019861,2]
[388657389,1759306243601,-500.0,0.00019861,2]
[388657390,1759306243611,-500.0,0.00019861,2]
[388657391,1759306243620,-500.0,0.00019861,2]
[388657392,1759306243630,-531.51,0.00019861,2]
[388657393,1759306243639,-500.0,0.00019861,2]
[388657394,1759306243648,-500.0,0.00019861,2]
[388657395,1759306243658,-500.0,0.00019861,2]
[388657396,1759306243667,-966.15,0.00019861,2]
[388657397,1759306243677,-500.0,0.00019861,2]
[388657398,1759306243687,-1108.01,0.00019861,2]
[388657399,1759306243696,-500.0,0.00019861,2]
[388657400,1759306243705,-500.0,0.00019861,2]
[388657401,1759306243715,-500.0,0.00019861,2]
[388657402,1759306243725,-500.0,0.00019861,2]
[388657403,1759306243735,-500.0,0.00019861,2]
[388657404,1759306243745,-500.0,0.00019861,2]
[388657405,1759306243756,-722.29,0.00019861,2]
[388657406,1759306243912,-500.0,0.00019861,2]
[388657407,1759306243922,-500.0,0.00019861,2]
[388657408,1759306243932,-500.0,0.00019861,2]
[388657409,1759306243942,-500.0,0.00019861,2]
[388657410,1759306243951,-500.0,0.00019861,2]
[388657411,1759306243961,-500.0,0.00019861,2]
[388657412,1759306243971,-1730.35,0.00019861,2]
[388657413,1759306243979,-623.54,0.00019861,2]
[388657414,1759306243989,-500.0,0.00019861,2]
[388657415,1759306243998,-629.98,0.00019861,2]
[388657416,1759306244007,-953.92,0.00019861,2]
[388657417,1759306244017,-500.0,0.00019861,2]
[388657418,1759306244027,-1579.13,0.00019861,2]
[388657419,1759306244036,-2454.83,0.00019861,2]
[388657420,1759306244045,-500.0,0.00019861,2]
[388657421,1759306244054,-500.0,0.00019861,2]
[388657422,1759306244064,-500.0,0.00019861,2]
[388657423,1759306244073,-731.75,0.00019861,2]
[388657424,1759306244083,-500.0,0.00019861,2]
[388657425,1759306244092,-500.0,0.00019861,2]
[388657426,1759306244101,-500.0,0.00019861,2]
[388657427,1759306244111,-999.56,0.00019861,2]
[388657428,1759306244121,-500.0,0.00019861,2]
[388657429,1759306244130,-663.2,0.00019861,2]
[388657430,1759306244140,-661.41,0.00019861,2]
[388657431,1759306244149,-629.83,0.00019861,2]
[388657432,1759306244159,-430.73298399,0.00019861,2]
[388657433,1759306244168,-500.0,0.00019861,2]
[388657434,1759306244177,-564.19,0.00019861,2]
[388657435,1759306244189,-500.0,0.00019861,2]
[388657436,1759306244199,-500.0,0.00019861,2]
[388657437,1759306244215,-715.74,0.00019861,2]
[388657438,1759306244224,-500.0,0.00019861,2]
[388657439,1759306244234,-813.25,0.00019861,2]
[388657440,1759306244243,-500.0,0.00019861,2]
[388657441,1759306244252,-500.0,0.00019861,2]
[388657442,1759306244261,-500.0,0.00019861,2]
[388657443,1759306244271,-1030.4,0.00019861,2]
[388657444,1759306244281,-500.0,0.00019861,2]
[388657445,1759306244293,-500.0,0.00019861,2]
[388657446,1759306244303,-761.03,0.00019861,2]
[388657447,1759306244312,-2017.48,0.00019861,2]
[388657448,1759306244322,-500.0,0.00019861,2]
[388657449,1759306244331,-500.0,0.00019861,2]
[388657450,1759306244340,-1075.62,0.00019861,2]
[388657451,1759306244349,-500.0,0.00019861,2]
[388657452,1759306244359,-500.0,0.00019861,2]
[388657453,1759306244368,-500.0,0.00019861,2]
[388657454,1759306244378,-500.0,0.00019861,2]
[388657455,1759306244387,-500.0,0.00019861,2]
[388657456,1759306244397,-500.0,0.00019861,2]
[388657457,1759306244406,-500.0,0.00019861,2]
[388657458,1759306244416,-500.0,0.00019861,2]
[388657459,1759306244425,-500.0,0.00019861,2]
[388657460,1759306244435,-500.0,0.00019861,2]
[388657461,1759306244444,-571.07,0.00019861,2]
[388657462,1759306244453,-1214.59,0.00019861,2]
[388657463,1759306244462,-714.76,0.00019861,2]
[388657464,1759306244471,-1232.57,0.00019861,2]
[388657465,1759306244481,-520.74,0.00019861,2]
[388657466,1759306244490,-500.0,0.00019861,2]
[388657467,1759306244499,-500.0,0.00019861,2]
[388657468,1759306244509,-809.19,0.00019861,2]
[388657469,1759306244519,-500.0,0.00019861,2]
[388657470,1759306244528,-151.0,0.000199,2]
[388657471,1759306244537,-151.0,0.000199,2]
[388657472,1759306244547,-500.0,0.0001996,2]
[388657473,1759306244556,-500.0,0.0001996,2]
[388657474,1759306244565,-1126.21,0.0001996,2]
[388657475,1759306244574,-500.0,0.0001996,2]
[388657476,1759306244583,-500.0,0.0001996,2]
[388657477,1759306244591,-548.89,0.0001996,2]
[388657478,1759306244600,-500.0,0.0001996,2]
[388657479,1759306244610,-667.7,0.0001996,2]
[388657480,1759306244620,-633.7,0.0001996,2]
[388657481,1759306244629,-500.0,0.0001996,2]
[388657482,1759306244639,-426.65434766,0.0001996,2]
[388657483,1759306244648,-500.0,0.0001996,2]
[388657484,1759306244659,-500.0,0.0001996,2]
[388657485,1759306244668,-500.0,0.0001996,2]
[388657486,1759306244677,-500.0,0.0001996,2]
[388657487,1759306244687,-634.68,0.0001996,2]
[388657488,1759306244696,-500.0,0.0001996,2]
[388657489,1759306244707,-549.02,0.0001996,2]
[388657490,1759306244717,-425.00110057,0.0001996,2]
[388657491,1759306244727,-1201.81,0.0001996,2]
[388657492,1759306244737,-942.57,0.0001996,2]
[388657494,1759306244752,-500.0,0.0001996,2]
[388657495,1759306244761,-721.61,0.0001996,2]
[388657497,1759306244771,-500.0,0.0001996,2]
[388657499,1759306244780,-500.0,0.0001996,2]
[388657501,1759306244791,-1885.77,0.0001996,2]
[388657502,1759306244800,-1795.31,0.0001996,2]
[388657504,1759306244809,-698.33,0.0001996,2]
[388657506,1759306244819,-500.0,0.0001996,2]
[388657507,1759306244828,-2637.83,0.0001996,2]
[388657508,1759306244837,-500.0,0.0001996,2]
[388657509,1759306244847,-2374.97,0.0001996,2]
[388657510,1759306244856,-572.29,0.0001996,2]
[388657512,1759306244866,-522.18,0.0001996,2]
[388657513,1759306244875,-683.56,0.0001996,2]
[388657515,1759306244885,-4298.01,0.0001996,2]
[388657517,1759306244894,-500.0,0.0001996,2]
[388657518,1759306244903,-500.0,0.0001996,2]
[388657520,1759306244912,-500.0,0.0001996,2]
[388657521,1759306244921,-1419.82,0.0001996,2]
[388657522,1759306244932,-502.78,0.0001996,2]
[388657523,1759306244944,-500.0,0.0001996,2]
[388657524,1759306244953,-652.22,0.0001996,2]
[388657525,1759306244962,-661.17,0.0001996,2]
[388657526,1759306244971,-833.07,0.0001996,2]
[388657527,1759306244982,-521.8,0.0001996,2]
[388657528,1759306244992,-1223.02,0.0001996,2]
[388657529,1759306245002,-2405.79,0.0001996,2]
[388657530,1759306245012,-894.47,0.0001996,2]
[388657531,1759306245023,-622.44,0.0001996,2]
[388657532,1759306245034,-1194.55,0.0001996,2]
[388657533,1759306245043,-877.5,0.0001996,2]
[388657534,1759306245052,-760.0,0.0001996,2]
[388657535,1759306245062,-500.0,0.0001996,2]
[388657536,1759306245071,-541.84,0.0001996,2]
[388657537,1759306245080,-532.92,0.0001996,2]
[388657538,1759306245090,-2020.1,0.0001996,2]
[388657539,1759306245099,-1452.08,0.0001996,2]
[388657540,1759306245109,-500.0,0.0001996,2]
[388657541,1759306245120,-500.0,0.00019961,2]
[388657542,1759306245130,-526.46,0.00019961,2]
[388657543,1759306245140,-500.0,0.00019961,2]
[388657544,1759306245149,-364.23478486,0.00019961,2]
[388657545,1759306245158,-579.38,0.00019961,2]
[388657546,1759306245168,-500.0,0.00019961,2]
[388657547,1759306245178,-500.0,0.00019961,2]
[388657548,1759306245190,-500.0,0.00019961,2]
[388657549,1759306245199,-500.0,0.00019961,2]
[388657550,1759306245208,-500.0,0.00019961,2]
[388657551,1759306245220,-500.0,0.00019961,2]
[388657552,1759306245230,-546.34,0.00019961,2]
[388657553,1759306245239,-500.0,0.00019961,2]
[388657554,1759306245248,-614.7888316,0.00019961,2]
[388657555,1759306245258,-500.0,0.00019961,2]
[388657556,1759306245268,-500.0,0.00019961,2]
[388657557,1759306245277,-500.0,0.00019961,2]
[388657558,1759306245286,-500.0,0.00019961,2]
[388657559,1759306245296,-555.57,0.00019961,2]
[388657560,1759306245305,-500.0,0.00019961,2]
[388657561,1759306245314,-751.44,0.00019961,2]
[388657562,1759306245323,-500.0,0.00019961,2]
[388657563,1759306245332,-694.75,0.00019961,2]
[388657564,1759306245341,-500.0,0.00019961,2]
[388657565,1759306245351,-443.2954103,0.00019961,2]
[388657566,1759306245360,-500.0,0.00019961,2]
[388657567,1759306245369,-670.14,0.00019961,2]
[388657568,1759306245379,-500.0,0.00019961,2]
[388657569,1759306245388,-500.0,0.00019961,2]
[388657570,1759306245398,-459.04688599,0.00019961,2]
[388657571,1759306245407,-500.0,0.00019961,2]
[388657572,1759306245417,-500.0,0.00019961,2]
[388657573,1759306245426,-500.0,0.00019961,2]
[388657574,1759306245435,-371.80716402,0.00019961,2]
[388657575,1759306245444,-289.81913984,0.00019961,2]
[388657576,1759306245455,-445.09809606,0.00019961,2]
[388657577,1759306245465,-443.98728009,0.00019961,2]
[388657578,1759306245475,-500.0,0.00019961,2]
[388657579,1759306245484,-445.9045976,0.00019961,2]
[388657580,1759306245494,-500.0,0.00019961,2]
[388657581,1759306245503,-500.0,0.00019961,2]
[388657582,1759306245512,-448.98512018,0.00019961,2]
[388657583,1759306245522,-500.0,0.00019961,2]
[388657584,1759306245532,-500.0,0.00019961,2]
[388657585,1759306245541,-475.17054848,0.00019961,2]
[388657586,1759306245551,-500.0,0.00019961,2]
[388657587,1759306245561,-500.0,0.00019961,2]
[388657588,1759306245570,-355.26776425,0.00019961,2]
[388657589,1759306245580,-500.0,0.00019961,2]
[388657590,1759306245589,-500.0,0.00019961,2]
[388657591,1759306245599,-610.39035599,0.00019961,2]
[388657592,1759306245609,-500.0,0.00019961,2]
[388657593,1759306245618,-500.0,0.00019961,2]
[388657594,1759306245628,-500.0,0.00019961,2]
[388657595,1759306245637,-442.08430554,0.00019961,2]
[388657596,1759306245646,-500.0,0.00019961,2]
[388657597,1759306245655,-500.0,0.00019961,2]
[388657598,1759306245664,-500.0,0.00019961,2]
[388657599,1759306245674,-500.0,0.00019961,2]
[388657600,1759306245684,-500.0,0.00019961,2]
[388657601,1759306245692,-500.0,0.00019961,2]
[388657602,1759306245701,-500.0,0.00019961,2]
[388657603,1759306245713,-500.0,0.00019961,2]
[388657604,1759306245723,-445.7148716,0.00019961,2]
[388657605,1759306245731,-500.0,0.00019962,2]
[388657606,1759306245740,-500.0,0.00019962,2]
[388657607,1759306245749,-500.0,0.00019962,2]
[388657608,1759306245759,-520.0,0.00019962,3]
[388657609,1759306245768,-660.18,0.00019962,2]
[388657610,1759306245777,-1518.03,0.00019962,2]
[388657611,1759306245786,-500.0,0.00019962,2]
[388657612,1759306245795,-627.71,0.00019962,2]
[388657613,1759306245804,-677.65,0.00019962,2]
[388657614,1759306245813,-443.91338469,0.00019962,2]
[388657615,1759306245823,-500.0,0.00019962,2]
[388657616,1759306245833,-760.81,0.00019962,2]
[388657617,1759306245843,-500.0,0.00019962,2]
[388657618,1759306245852,-2025.29,0.00019962,2]
[388657619,1759306245862,-554.36,0.00019962,2]
[388657620,1759306245871,-500.0,0.00019962,2]
[388657621,1759306245880,-500.0,0.00019962,2]
[388657622,1759306245890,-500.0,0.00019962,2]
[388657623,1759306245899,-500.0,0.00019962,2]
[388657624,1759306245909,-500.0,0.00019962,2]
[388657625,1759306245918,-500.0,0.00019962,2]
[388657626,1759306245927,-500.0,0.00019962,2]
[388657627,1759306245936,-500.0,0.00019962,2]
[388657628,1759306245946,-500.0,0.00019962,2]
[388657629,1759306245955,-500.0,0.00019962,2]
[388657630,1759306245965,-500.0,0.00019962,2]
[388657631,1759306245974,-425.06160417,0.00019962,2]
[388657632,1759306245983,-500.0,0.00019962,2]
[388657633,1759306245993,-522.98596925,0.00019962,2]
[388657634,1759306246002,-500.0,0.00019962,2]
[388657635,1759306246011,-564.05,0.00019962,2]
[388657636,1759306246021,-533.75,0.00019962,2]
[388657637,1759306246031,-500.0,0.00019962,2]
[388657638,1759306246040,-500.0,0.00019962,2]
[388657639,1759306246050,-500.0,0.00019962,2]
[388657640,1759306246059,-500.0,0.00019973,2]
[388657641,1759306246068,-500.0,0.00019973,2]
[388657642,1759306246077,-500.0,0.00019973,2]
[388657643,1759306246086,-500.0,0.00019973,2]
[388657644,1759306246095,-500.0,0.00019973,2]
[388657645,1759306246104,-291.0232396,0.00019973,2]
[388657646,1759306246113,-500.0,0.00019973,2]
[388657647,1759306246123,-500.0,0.00019973,2]
[388657648,1759306246132,-500.0,0.00019973,2]
[388657649,1759306246142,-449.35517041,0.00019973,2]
[388657651,1759306246151,-500.0,0.00019973,2]
[388657652,1759306246159,-500.0,0.00019973,2]
[388657654,1759306246169,-163.77728714,0.00019973,2]
[388657656,1759306246180,-500.0,0.00019973,2]
[388657657,1759306246189,-175.05517669,0.00019973,2]
[388657658,1759306246199,-500.0,0.00019973,2]
[388657659,1759306246208,-500.0,0.00019973,2]
[388657660,1759306246218,-500.0,0.00019973,2]
[388657661,1759306246227,-500.0,0.00019973,2]
[388657662,1759306246236,-500.0,0.00019973,2]
[388657663,1759306246245,-500.0,0.00019973,2]
[388657664,1759306246254,-500.0,0.00019973,2]
[388657666,1759306246263,-177.5413789,0.00019973,2]
[388657668,1759306246272,-500.0,0.00019973,2]
[388657669,1759306246282,-500.0,0.00019973,2]
[388657670,1759306246291,-500.0,0.00019973,2]
[388657671,1759306246300,-500.0,0.00019973,2]
[388657673,1759306246309,-500.0,0.00019973,2]
[388657675,1759306246318,-500.0,0.00019973,2]
[388657676,1759306246327,-500.0,0.00019973,2]
[388657677,1759306246336,-536.43005649,0.00019973,2]
[388657678,1759306246345,-500.0,0.00019973,2]
[388657679,1759306246355,-500.0,0.00019973,2]
[388657680,1759306246364,-500.0,0.00019973,2]
[388657681,1759306246373,-501.15990748,0.00019973,2]
[388657683,1759306246382,-500.60463537,0.00019973,2]
[388657684,1759306246391,-151.0,0.0002,3]
[388657685,1759306246400,-500.0,0.00020061,2]
[388657686,1759306246410,-667.56,0.00020061,2]
[388657687,1759306246419,-500.0,0.00020061,2]
[388657688,1759306246428,-500.0,0.00020061,2]
[388657689,1759306246437,-500.0,0.00020061,2]
[388657690,1759306246446,-500.0,0.00020061,2]
[388657691,1759306246455,-920.38,0.00020061,2]
[388657692,1759306246464,-500.0,0.00020061,2]
[388657693,1759306246473,-300.0,0.000201,2]
[388657694,1759306246482,-300.0,0.000201,2]
[388657695,1759306246491,-300.0,0.000201,2]
[388657696,1759306246500,-151.0,0.000201,3]
[388657697,1759306246509,-1000.0,0.00020121,2]
[388657698,1759306246519,-1000.0,0.00020121,2]
[388657699,1759306246527,-503.24421874,0.00020121,2]
[388657700,1759306246536,-407.47546568,0.00020132,2]
[388657701,1759306246546,-500.0,0.00020134,2]
[388657702,1759306246555,-500.0,0.00020134,2]
[388657703,1759306246564,-500.0,0.00020134,2]
[388657704,1759306246576,-500.0,0.00020134,2]
[388657705,1759306246585,-500.0,0.00020134,2]
[388657706,1759306246594,-1697.63,0.00020134,2]
[388657707,1759306246603,-500.0,0.00020134,2]
[388657708,1759306246612,-500.0,0.00020134,2]
[388657709,1759306246621,-2784.55,0.00020134,2]
[388657710,1759306246630,-512.93,0.00020134,2]
[388657711,1759306246640,-500.0,0.00020134,2]
[388657712,1759306246650,-500.0,0.00020134,2]
[388657713,1759306246659,-1490.46,0.00020134,2]
[388657714,1759306246668,-810.31,0.00020134,2]
[388657715,1759306246677,-2100.1,0.00020134,2]
[388657716,1759306246687,-947.32,0.00020134,2]
[388657717,1759306246696,-503.22,0.00020134,2]
[388657718,1759306246705,-500.0,0.00020134,2]
[388657719,1759306246715,-1050.55,0.00020134,2]
[388657720,1759306246724,-1451.5,0.00020134,2]
[388657721,1759306246733,-845.24,0.00020134,2]
[388657722,1759306246743,-500.37,0.00020134,2]
[388657723,1759306246752,-771.47,0.00020134,2]
[388657724,1759306246761,-1818.64,0.00020134,2]
[388657725,1759306246771,-500.0,0.00020134,2]
[388657726,1759306246780,-500.0,0.00020134,2]
[388657727,1759306246790,-600.07,0.00020134,2]
[388657728,1759306246799,-366.4539804,0.00020134,2]
[388657729,1759306246809,-2468.21,0.00020134,2]